Cogmind - Beta 13 @@@ ROGUE MODE // 2024.04.11 @ 23:23:41 Player: GregoriusTechneticies Result: Destroyed by Y-45 Defender with Beam Rifle Performance ------------- Evolutions (2) 1000 Regions Visited (5) 1000 Robots Destroyed (36) 180 Value Destroyed (502) 502 Prototype IDs (0) 0 Alien Tech Used (0) 0 Bonus (0) 0 TOTAL SCORE: 2682 Bonus ------- None Cogmind --------- Core Integrity 0/550 Matter 295/300 Energy 100/100 System Corruption 0% Temperature Cool (18) Movement Core (250) Ox4 Location -8/Materials Parts ------- > --- POWER (2) -------- (None) > --- PROPULSION (3) --- (None) > --- UTILITY (4) ------ Medium Storage Unit > --- WEAPON (2) ------- Maul > --- INVENTORY (10) --- Structural Scanner Improved Terrain Scanner Terrain Scan Processor Seismic Detector Improved Light Armor Plating Light Assault Rifle Autogun Assault Cannon Peak State ------------ > --- POWER ------------ Light Ion Engine > --- PROPULSION ------- Wheel Armored Huge Wheel > --- UTILITY ---------- Medium Storage Unit Sensor Array Powered Armor > --- WEAPON ----------- Particle Gun Ion Cannon > --- INVENTORY -------- Structural Scanner Improved Terrain Scanner Terrain Scan Processor Seismic Detector Improved Light Armor Plating Light Assault Rifle Autogun Assault Cannon Maul [Rating: 22] Favorites ----------- Power Light Ion Engine Engine Light Ion Engine Propulsion Wheel Wheel Wheel Utility Seismic Detector Device Seismic Detector Storage Medium Storage Unit Protection Powered Armor Weapon Small Laser Energy Gun Small Laser Energy Cannon Ion Cannon Ballistic Gun Assault Rifle Special Weapon Plasma Flamer Impact Weapon Maul Build | -11 -10 -10 -9 -9 -8 ------- Run | Yrd Mat Min Mat Min Mat Slots Evolved 4 | . . . 2 . 2 Power 1 | . . . 1 . . Propulsion 1 | . . . . . 1 Utility 2 | . . . 1 . 1 Weapon . | . . . . . . Parts Attached 55 | 8 2 1 6 29 9 Power 12 | 1 . 1 1 9 . Engine 12 | 1 . 1 1 9 . Core . | . . . . . . Reactor . | . . . . . . Propulsion 18 | 4 . . . 11 3 Treads . | . . . . . . Leg . | . . . . . . Wheel 18 | 4 . . . 11 3 Hover . | . . . . . . Flight . | . . . . . . Utility 13 | 1 2 . 2 4 4 Device 8 | . 1 . 1 4 2 Storage 3 | 1 1 . 1 . . Processor . | . . . . . . Hackware . | . . . . . . Protection 2 | . . . . . 2 Artifact . | . . . . . . Weapon 12 | 2 . . 3 5 2 Energy Gun 3 | . . . . 3 . Energy Cannon 1 | . . . . . 1 Ballistic Gun 4 | 2 . . 1 1 . Ballistic Cannon . | . . . . . . Launcher . | . . . . . . Special Weapon 3 | . . . 2 1 . Impact Weapon 1 | . . . . . 1 Slashing Weapon . | . . . . . . Piercing Weapon . | . . . . . . Special Melee Weapon . | . . . . . . Unidentified Prototypes . | . . . . . . Parts Lost 18 | . . . 2 4 12 Power 4 | . . . 1 1 2 Propulsion 5 | . . . . 1 4 Utility 5 | . . . . 1 4 Weapon 4 | . . . 1 1 2 Highest Loss Streak 12 | . . . 2 4 12 To Critical Strikes . | . . . . . . Average Slot Usage (%) 90 | . 100 100 99 90 65 Engine 15 | . 14 14 21 15 9 Wheel 21 | . 28 28 22 21 15 Device 20 | . 14 14 22 21 14 Storage 11 | . 14 14 11 11 9 Energy Gun 6 | . . . . 9 8 Ballistic Gun 7 | . 28 28 12 4 . Special Weapon 5 | . . . 8 6 . Naked Turns . | . . . . . . Heaviest Build 33 | 13 29 29 31 22 33 Greatest Support 38 | 26 20 20 20 20 38 Greatest Overweight (x) 7 | 2 1 1 1 4 7 Average Overweight (x) . | . . 1 . . 1 Largest Inventory Capacity 15 | 8 15 15 15 10 10 Average Capacity 10 | 7 10 15 12 10 10 Most Carried 15 | 8 10 15 15 10 10 Average Carried 9 | 4 8 13 11 9 9 Final Capacity 15 | 8 15 15 10 10 10 Final Carried 15 | 8 10 15 10 10 8 Class Distribution -------------------- 74% | Scavenger-Mutant 25% | Mutant Dominant Class ---------------- Mutant | -10/Materials Mutant | -10/Mines Scavenger-Mutant | -9/Materials Scavenger-Mutant | -9/Mines Mutant | -8/Materials Resources | -11 -10 -10 -9 -9 -8 ----------- Run | Yrd Mat Min Mat Min Mat Matter Collected 935 | 320 . 35 . 557 23 Remotely . | . . . . . . Salvage Created 964 | 191 . 35 . 671 67 Parts 70 | 14 . 7 . 40 9 Haulers Intercepted . | . . . . . . Recyclers Shooed 3 | 3 . . . . . Parts Field Recycled . | . . . . . . Retrieved Matter . | . . . . . . Parts Self-Destructed . | . . . . . . Prevented . | . . . . . . Kills | -11 -10 -10 -9 -9 -8 ------- Run | Yrd Mat Min Mat Min Mat Combat Hostiles Destroyed 16 | . . . . 12 4 Guns 12 | . . . . 10 2 Cannons 4 | . . . . 2 2 Classes Destroyed 7 | 3 . . . 4 . Worker 3 | 2 . . . . 1 Builder 7 | . . . . 7 . Tunneler 7 | 3 . 2 . 2 . Recycler 4 | 1 . . . 3 . Swarmer 7 | . . . . 3 4 Grunt 8 | . . . . 8 . Assembled 1 | . . . . 1 . Best Kill Streak 5 | 5 . 2 . 4 4 Combat Bots Only 4 | . . . . 3 4 Max Kills in Single Turn 2 | 1 . 1 . 1 2 Gunslinging . | . . . . . . Exploded . | . . . . . . Melee . | . . . . . . Uniques/NPCs Destroyed . | . . . . . . Combat | -11 -10 -10 -9 -9 -8 -------- Run | Yrd Mat Min Mat Min Mat Hostile Shots Fired 302 | . 1 . 15 74 212 Missed 79 | . . . 3 24 52 Damage Taken 2510 | . 13 . 149 649 1699 Core 727 | . . . 12 151 564 Absorbed by Shields . | . . . . . . Core Remaining (%) 86 | 100 . 100 . 59 . Volleys Fired 116 | 19 1 4 27 61 4 Largest 2 | 2 2 2 1 2 2 Hottest 165 | 40 40 40 100 165 125 Shots Fired 189 | 38 2 8 27 106 8 Gun 129 | 38 2 8 . 77 4 Cannon 4 | . . . . . 4 Launcher . | . . . . . . Special 56 | . . . 27 29 . Kinetic 74 | 38 2 8 . 26 . Thermal 115 | . . . 27 80 8 Explosive . | . . . . . . Electromagnetic . | . . . . . . Robot Hit Streak 16 | 16 . 2 . 8 4 Robot Miss Streak 3 | 2 2 3 . 2 1 Penetration Max . | . . . . . . Secondary Targets . | . . . . . . Shots Hit Robots 102 | 30 . 3 . 65 4 Core Hits 50 | 8 . 3 . 34 5 Critical Kills . | . . . . . . Critical Parts Destroyed . | . . . . . . Critical Strikes 3 | . . . . 3 . Burn 3 | . . . . 3 . Melee Attacks 2 | . . . . . 2 Impact 2 | . . . . . 2 Slashing . | . . . . . . Piercing . | . . . . . . Sneak Attacks . | . . . . . . Combat Hostiles . | . . . . . . Follow-up Attacks . | . . . . . . Damage Inflicted 1266 | 347 . 52 1 761 105 Guns 1001 | 347 . 52 . 551 51 Cannons 44 | . . . . . 44 Explosions . | . . . . . . Melee . | . . . . . . Ramming 11 | . . . 1 . 10 Kinetic 597 | 347 . 52 . 198 . Thermal 658 | . . . . 563 95 Explosive . | . . . . . . Electromagnetic . | . . . . . . Impact . | . . . . . . Slashing . | . . . . . . Piercing . | . . . . . . Highest Corruption 2 | . . . 2 2 . Average Corruption 2 | . . . 2 2 . Corruption Purged . | . . . . . . Corruption Blocked . | . . . . . . Effects 16 | . . . 3 13 . Message Errors 4 | . . . . 4 . Matter Fused 3 | . . . 2 1 . Heat Flow Errors 4 | . . . 1 3 . Energy Discharges 1 | . . . . 1 . Parts Rejected 1 | . . . . 1 . Data Loss (minor) 3 | . . . . 3 . Overload Shots . | . . . . . . Overflow Damage 7 | . . . . 7 . Projectiles 7 | . . . . 7 . Explosions . | . . . . . . Melee . | . . . . . . Knockbacks . | . . . . . . Impact . | . . . . . . Kinetic . | . . . . . . Secondary . | . . . . . . Self-Inflicted Damage 4 | . . . . . 4 Shots . | . . . . . . Rammed 3 | . . . 1 . 2 Targets Rammed 3 | . . . 1 . 2 Kicked . | . . . . . . Crushed . | . . . . . . Highest Temperature 470 | . . . 259 470 120 Average Temperature 103 | . . . 46 137 50 Received Heat Transfer 903 | . 9 . 84 333 477 Effects 11 | . . . . 11 . Shutdowns 4 | . . . . 4 . Energy Bleed 1 | . . . . 1 . Matter Decay 2 | . . . . 2 . Damage (major) 4 | . . . . 4 . Siege Activations . | . . . . . . Robots Corrupted . | . . . . . . Combat Hostiles . | . . . . . . Parts Fried . | . . . . . . Impact Corruptions . | . . . . . . Robots Melted 1 | . . . . 1 . Combat Hostiles . | . . . . . . Parts Melted 6 | . . . . 5 1 Heat Transferred 2743 | . . . . 2558 185 Parts Sabotaged . | . . . . . . Parts Stolen . | . . . . . . Parts Stripped . | . . . . . . Power Chain Reactions . | . . . . . . Alert | -11 -10 -10 -9 -9 -8 ------- Run | Yrd Mat Min Mat Min Mat Peak Influence 205 | 30 49 28 75 205 182 Initial 62 | . 19 18 10 . 62 Average 53 | 10 27 27 41 55 118 Maximum Alert Level 1 | . . . . 1 . Low Security (%) 96 | 100 100 100 100 93 100 Level 1 3 | . . . . 6 . Level 2 . | . . . . . . Level 3 . | . . . . . . Level 4 . | . . . . . . Level 5 . | . . . . . . High Security . | . . . . . . Max Security . | . . . . . . Squads Dispatched 3 | . . . 2 1 . Investigation 2 | . . . 2 . . Extermination . | . . . . . . Reinforcement 1 | . . . . 1 . Assault . | . . . . . . Garrison . | . . . . . . Intercept . | . . . . . . Searches Triggered . | . . . . . . Construction Impeded 1 | . . . . 1 . Haulers Reinforced . | . . . . . . Active Scanning Responses . | . . . . . . Cargo Convoy Interrupts . | . . . . . . Stealth | -11 -10 -10 -9 -9 -8 --------- Run | Yrd Mat Min Mat Min Mat Distress Signals 2 | . . . 1 . 1 Communications Jammed . | . . . . . . Distress Signals . | . . . . . . Times Spotted 52 | . 2 . 10 17 23 Peak Tracking Total 16 | . 2 . 7 5 16 Tactical Retreats 6 | . 1 . . 3 2 Traps | -11 -10 -10 -9 -9 -8 ------- Run | Yrd Mat Min Mat Min Mat Traps Triggered 1 | . . . 1 . . Indirectly . | . . . . . . Trap Hack Attempts . | . . . . . . Triggered . | . . . . . . Disarmed . | . . . . . . Reprogrammed . | . . . . . . Reused . | . . . . . . Traps Extracted . | . . . . . . Installed . | . . . . . . Triggered . | . . . . . . Machines | -11 -10 -10 -9 -9 -8 ---------- Run | Yrd Mat Min Mat Min Mat Machines Disabled 2 | . . . 1 1 . Max in Single Turn 1 | . . . 1 1 . Machines Repaired . | . . . . . . Machines Dismantled . | . . . . . . Machines Sabotaged . | . . . . . . Overloaded Fab Kills . | . . . . . . Hacking | -11 -10 -10 -9 -9 -8 --------- Run | Yrd Mat Min Mat Min Mat Machines Accessed 2 | . . . 2 . . Terminals 2 | . . . 2 . . Fabricators . | . . . . . . Repair Stations . | . . . . . . Recycling Units . | . . . . . . Scanalyzers . | . . . . . . Garrison Access . | . . . . . . Total Hacks 5 | . . . 5 . . Successful 1 | . . . 1 . . Failed 4 | . . . 4 . . Catastrophic 2 | . . . 2 . . Database Lockouts . | . . . . . . Manual 5 | . . . 5 . . Terminals 5 | . . . 5 . . Fabricators . | . . . . . . Repair Stations . | . . . . . . Recycling Units . | . . . . . . Scanalyzers . | . . . . . . Garrison Access . | . . . . . . Terminal Hacks 1 | . . . 1 . . Unreport Threat 1 | . . . 1 . . Fabricator Hacks . | . . . . . . Repair Station Hacks . | . . . . . . Recycling Unit Hacks . | . . . . . . Scanalyzer . | . . . . . . Garrison Access Hacks . | . . . . . . Unauthorized Hacks . | . . . . . . Terminals . | . . . . . . Fabricators . | . . . . . . Repair Stations . | . . . . . . Recycling Units . | . . . . . . Scanalyzers . | . . . . . . Garrison Access . | . . . . . . Data Cores Recovered . | . . . . . . Used . | . . . . . . Hacking Detections 2 | . . . 2 . . Full Trace Events 2 | . . . 2 . . Feedback Events . | . . . . . . Feedback Blocked . | . . . . . . Robot Schematics Acquired . | . . . . . . Robots Built . | . . . . . . Authchips . | . . . . . . Time . | . . . . . . Total Robot Build Rating . | . . . . . . Part Schematics Acquired . | . . . . . . Parts Built . | . . . . . . Authchips . | . . . . . . Time . | . . . . . . Total Part Build Rating . | . . . . . . Parts Repaired . | . . . . . . Time . | . . . . . . Parts Recycled . | . . . . . . Recycled Matter . | . . . . . . Retrieved Matter . | . . . . . . Retrieved Components . | . . . . . . Parts Scanalyzed . | . . . . . . Part Schematics Acquired . | . . . . . . Parts Damaged . | . . . . . . Bothacking | -11 -10 -10 -9 -9 -8 ------------ Run | Yrd Mat Min Mat Min Mat Used RIF Installer . | . . . . . . Robots Hacked . | . . . . . . Non-combat . | . . . . . . Combat . | . . . . . . Robot Hacks Applied . | . . . . . . Relay Couplers Released . | . . . . . . Fabnet Peak Effective % . | . . . . . . Robots Rewired . | . . . . . . Allies Hacked . | . . . . . . Hacks Repelled . | . . . . . . Allies | -11 -10 -10 -9 -9 -8 -------- Run | Yrd Mat Min Mat Min Mat Total Allies . | . . . . . . Largest Group . | . . . . . . Highest-Rated Group . | . . . . . . Highest-Rated Ally . | . . . . . . Total Orders . | . . . . . . Ally Attacks . | . . . . . . Total Damage . | . . . . . . Kills . | . . . . . . Allies Corrupted . | . . . . . . Allies Melted . | . . . . . . Intel | -11 -10 -10 -9 -9 -8 ------- Run | Yrd Mat Min Mat Min Mat Robot Analysis Total . | . . . . . . Derelict Logs Recovered 1 | . . . . 1 . Drone Launches . | . . . . . . Drone Recoveries . | . . . . . . Exploration | -11 -10 -10 -9 -9 -8 ------------- Run | Yrd Mat Min Mat Min Mat Turns Passed 1991 | 144 86 82 338 1147 194 Spaces Moved 1153 | 82 89 67 241 540 134 Core 38 | 8 . . . 7 23 Treads . | . . . . . . Legs . | . . . . . . Wheels 1115 | 74 89 67 241 533 111 Hover . | . . . . . . Flight . | . . . . . . Fastest Speed 50 | 50 80 95 80 80 80 Average Speed 92 | 85 84 95 89 88 117 Slowest Speed 400 | 150 95 95 95 250 400 Overloaded Moves . | . . . . . . Propulsion Burnouts . | . . . . . . Robots Hopped . | . . . . . . Cave-ins Triggered . | . . . . . . Exploration Rate (%) 28 | 3 21 28 25 64 28 Regions Visited 5 Branch Regions 2 Pre-discovered Areas . | . . . . . . Known Exits Taken . | . . . . . . Unknown Exits Taken 5 | 1 1 1 1 1 . Scrap Searched 2 | . . . . 2 . Spaces Dug 28 | . . . 26 . 2 Terrain Destroyed 29 | . . . 26 . 3 Melee 2 | . . . . . 2 Projectile 27 | . . . 26 . 1 AOE . | . . . . . . Terrain Rammed . | . . . . . . Walls Destroyed . | . . . . . . Machines Disabled . | . . . . . . Actions | -11 -10 -10 -9 -9 -8 --------- Run | Yrd Mat Min Mat Min Mat Total 1838 | 120 99 78 281 1101 159 Wait 435 | . . . . 432 3 Move 1148 | 81 88 66 240 539 134 Hop . | . . . . . . Pick Up 40 | 10 5 6 2 15 2 Fast Attach 11 | 6 . . . 2 3 Attach 17 | . 1 1 2 8 5 Detach 4 | . . . . 3 1 Swap 27 | 2 1 . 4 19 1 Drop 35 | 2 3 1 5 22 2 Fire 116 | 19 1 4 27 61 4 Melee 2 | . . . . . 2 Ram 3 | . . . 1 . 2 Kick . | . . . . . . Crush . | . . . . . . Escape Stasis . | . . . . . . Rewire . | . . . . . . Trap . | . . . . . . Miscellaneous . | . . . . . . Route ------- -11/Scrapyard -10/Materials -10/Mines -9/Materials -9/Mines -8/Materials (discovered 2 exits: [*Fac] / [*Sto]) History --------- Turn | Location | Event 11 | -11/Scrapyard | Discovered new exit (range 15) 145 | -11/Scrapyard | Entered Materials 211 | -10/Materials | Discovered new exit (range 14) 231 | -10/Materials | Entered Mines 301 | -10/Mines | Build established: Mutant 306 | -10/Mines | Discovered new exit (range 6) 313 | -10/Mines | Entered Materials 313 | -9/Materials | Evolved 2 slots: Power x1, Utility x1 639 | -9/Materials | Discovered new exit (range 7) 651 | -9/Materials | Entered Mines 704 | -9/Mines | Lost 4 parts (2p1n1w) 741 | -9/Mines | A weapon hastily lodged in a ceiling crevice suddenly fell to the ground 942 | -9/Mines | Assembled infested the area 947 | -9/Mines | Assisted by a Guerilla fighting off Assembled 993 | -9/Mines | Build established: Scavenger-Mutant 1516 | -9/Mines | Learned Materials non-interactive machine intel 1756 | -9/Mines | Discovered new exit (range 8) 1798 | -9/Mines | Entered Materials 1798 | -8/Materials | Evolved 2 slots: Propulsion x1, Utility x1 1799 | -8/Materials | Loaded intel: 29 non-interactive machine locations 1804 | -8/Materials | Found Unknown Protection 1804 | -8/Materials | Identified Powered Armor 1837 | -8/Materials | Discovered new exit (range 15) 1958 | -8/Materials | Core integrity fell below 50% 1975 | -8/Materials | Core integrity fell below 20% 1975 | -8/Materials | Discovered new exit (range 8) 1992 | -8/Materials | Lost 12 parts (2p4n4u2w) 1992 | -8/Materials | Destroyed by Y-45 Defender with Beam Rifle Last Messages --------------- 01899_ K-01 Serf collects debris. 01900_ K-01 Serf destroyed. 01902_ Structural Scanner destroyed. 01902_ Critical hit (Burn: +37). 01905_ Acquired Wheel. 01909_ Dropped Wheel. 01910_ Acquired Arm. Huge Wheel. 01912_ S-10 Pest destroyed. 01912_ Slammed into S-10 Pest. 01915_ Lgt. Ion Engine destroyed. 01917_ U-05 Engineer destroyed. 01920_ Sensor Array destroyed. 01920_ Ion Cannon destroyed. 01934_ Powered Armor destroyed. 01938_ Wheel destroyed. 01940_ Particle Gun destroyed. 01961_ Arm. Huge Wheel destroyed. 01969_ Critical hit (Burn: +37). 01975_ EXIT=FOUND 01990_ S-10 Pest destroyed. Map ----- +----------------------------------------------------+ | ???????????????????????????## !!##??????? | | ???????????????????????????## """ %!!##??????? | | ???????????????????????????## """ %!!##??????? | | ???????????????????????????## """ ==*=##??????? | | ???????????????????????????## ===##??????? | | ???????????????????????????## ###"##??????? | | ???????????????????????????## """ ######??????? | | ???????????????????????????## """ =########????? | | ??????????????????????????? # """ # #????? | | ???????????????????#??? ??? # #""" #????? | | ???????????????????# ?? """# ^ #"T #????? | | ???????????????????# ?? """# #""" #????? | | ???????????????????# ? """# !! # #????? | | ????????????????????" ? """# !! # """ #????? | | ????????????????????? ??# / """ #????? | | ?????????????????????? ??# # """ #????? | | ??????????????????????? ??# ###### #????? | | ??????????????????#######/### #????# """ #????? | | ????????????""" # s g #????# """ #????? | | ????????????""" + =g #????# """ #????? | | ????????????"""???# s%=g #??### #????? | | ??????????????????###### sY##/######""#######????? | | ????????????"""????????# gs# ###??????????? | | ????????????"""???###### # ! #????????????? | | ????????????"""???+ # #????????????" | | ??????????????????###### @ # #????????????" | | ???????????????????????# < # !#????????????" | | ???????????????????????# # #????????????? | | ???????????????????????##### #????????????" | | ???????????????????????????# #????????????" | | ???????????????????????????# #????????????" | | ???????????????????????????##########????????????? | | ?????????????????????????????????????????????????? | | ?????????????????????????????????????????????????? | | ?????????????????????????????????????????????????? | | ?????????????????????????????????????????????????? | | ?????????????????????????????????????????????????? | | ?????????????????????????????????????????????????? | | | | | | | | | | | | | | | | | | | | | | | | | +----------------------------------------------------+ Best States ------------- Heat Dissipation 31 Energy Generation 15 Energy Capacity 250 Matter Stores 300 Matter Capacity 300 Sight Range 16 Robot Scan Range 14 Terrain Scan Density 10 Armor Coverage 400 Evasion (%) 44 Item Schematics ----------------- None Robot Schematics ------------------ None Fabricated ------------ Nothing Alien Tech Used ----------------- None Achievements -------------- None Challenges ------------ None Game ------ Seed QuantumProtonCalibrator Manual? 0 Play Time 00:27:24 Cumulative 23.4 hours Start 2024.04.11 @ 22:55:41 End 2024.04.11 @ 23:23:41 Sessions 1 Manual Loads 0 Difficulty Rogue Special Mode None Game No. 28 Rogue 13 Adventurer 0 Explorer 15 Win Type - Total 0 Types 0/0/0/0/0/0/0/0/0 Lore% 14 Gallery% 25 Achievement% 19 Wizard Run 0 Options --------- Layout 1 ASCII 0 Keyboard 0 Movement Mouse Keybinds 0 Fullscreen 1 Font 24/Smallcaps Map View 50x35 Zoom Use 0% Tactical HUD 1 Map Filters NONE Filters NONE Steam 1 RUN: be8915cd-44d4-4c41-b6d1-2a848b916764